fUSD/lending_fUSD_20251211
["ID","MTS","AMOUNT","RATE_DAILY","PERIOD"]
[398163655,1765413032168,-500.0,0.00016999,2]
[398163657,1765413032178,-500.0,0.00016999,2]
[398163659,1765413032187,-500.0,0.00016999,2]
[398163661,1765413032197,-500.0,0.00016999,2]
[398163663,1765413032207,-500.0,0.00016999,2]
[398163665,1765413032216,-500.0,0.00016999,2]
[398163667,1765413032225,-500.0,0.00016999,2]
[398163670,1765413032243,-500.0,0.00016999,2]
[398163672,1765413032254,-500.0,0.00016999,2]
[398163674,1765413032265,-500.0,0.00016999,2]
[398163676,1765413032274,-500.0,0.00016999,2]
[398163678,1765413032284,-500.0,0.00016999,2]
[398163680,1765413032293,-500.0,0.00016999,2]
[398163682,1765413032303,-500.0,0.00016999,2]
[398163683,1765413032312,-500.0,0.00016999,2]
[398163684,1765413032323,-500.0,0.00016999,2]
[398163685,1765413032333,-500.0,0.00016999,2]
[398163686,1765413032343,-500.0,0.00016999,2]
[398163687,1765413032353,-500.0,0.00016999,2]
[398163688,1765413032364,-500.0,0.00016999,2]
[398163689,1765413032374,-500.0,0.00016999,2]
[398163690,1765413032383,-500.0,0.00016999,2]
[398163691,1765413032392,-500.0,0.00016999,2]
[398163692,1765413032402,-500.0,0.00016999,2]
[398163693,1765413032411,-500.0,0.00016999,2]
[398163694,1765413032421,-500.0,0.00016999,2]
[398163695,1765413032430,-500.0,0.00016999,2]
[398163696,1765413032440,-500.0,0.00016999,2]
[398163697,1765413032450,-500.0,0.00016999,2]
[398163698,1765413032459,-272.54324362,0.00016999,2]
[398163699,1765413032473,-227.45675638,0.00016999,2]
[398163700,1765413032483,-500.0,0.00016999,2]
[398163701,1765413032493,-500.0,0.00016999,2]
[398163702,1765413032658,-398.40730225,0.00016999,2]
[398163703,1765413032676,-500.0,0.00016999,2]
[398163704,1765413032687,-500.0,0.00016999,2]
[398163705,1765413032697,-500.0,0.00016999,2]
[398163706,1765413032706,-500.0,0.00016999,2]
[398163707,1765413032716,-500.0,0.00016999,2]
[398163708,1765413032725,-500.0,0.00016999,2]
[398163709,1765413032735,-500.0,0.00016999,2]
[398163710,1765413032745,-500.0,0.00016999,2]
[398163711,1765413032755,-539.01,0.00016999,2]
[398163712,1765413032764,-500.0,0.00016999,2]
[398163713,1765413032774,-179.35656801,0.00016999,2]
[398163714,1765413032784,-173.08370199,0.00016999,2]
[398163715,1765413032794,-198.47487941,0.00016999,2]
[398163716,1765413032804,-500.0,0.00016999,2]
[398163717,1765413032813,-350.0,0.00016999,2]
[398163718,1765413032823,-500.0,0.00016999,2]
[398163719,1765413032832,-500.0,0.00016999,2]
[398163720,1765413032842,-500.0,0.00016999,2]
[398163721,1765413032852,-500.0,0.00016999,2]
[398163722,1765413032862,-500.0,0.00016999,2]
[398163723,1765413032871,-500.0,0.00016999,2]
[398163724,1765413032880,-500.0,0.00016999,2]
[398163725,1765413032890,-500.0,0.00016999,2]
[398163726,1765413032899,-500.0,0.00016999,2]
[398163727,1765413032908,-500.0,0.00016999,2]
[398163728,1765413032920,-500.0,0.00016999,2]
[398163729,1765413032930,-500.0,0.00016999,2]
[398163730,1765413032939,-500.0,0.00016999,2]
[398163731,1765413032948,-500.0,0.00016999,2]
[398163732,1765413032958,-500.0,0.00016999,2]
[398163733,1765413032968,-500.0,0.00016999,2]
[398163734,1765413032978,-500.0,0.00016999,2]
[398163735,1765413032987,-500.0,0.00016999,2]
[398163736,1765413032999,-500.0,0.00016999,2]
[398163737,1765413033009,-500.0,0.00016999,2]
[398163738,1765413033019,-500.0,0.00016999,2]
[398163739,1765413033028,-500.0,0.00016999,2]
[398163740,1765413033038,-500.0,0.00016999,2]
[398163741,1765413033047,-133.87368062,0.00016999,2]
[398163742,1765413033059,-366.12631938,0.00016999,2]
[398163743,1765413033068,-500.0,0.00016999,2]
[398163744,1765413033078,-500.0,0.00016999,2]
[398163745,1765413033087,-500.0,0.00016999,2]
[398163746,1765413033097,-500.0,0.00016999,2]
[398163747,1765413033106,-500.0,0.00016999,2]
[398163748,1765413033116,-500.0,0.00016999,2]
[398163749,1765413033125,-500.0,0.00016999,2]
[398163750,1765413033134,-500.0,0.00016999,2]
[398163751,1765413033144,-383.36196184,0.00016999,2]
[398163752,1765413033153,-19.46259722,0.00016999,2]
[398163753,1765413033402,-480.53740278,0.00016999,2]
[398163754,1765413033417,-126.30981126,0.00016999,2]
[398163755,1765413033432,-373.69018874,0.00016999,2]
[398163756,1765413033445,-500.0,0.00016999,2]
[398163757,1765413033458,-500.0,0.00016999,2]
[398163758,1765413033474,-500.0,0.00016999,2]
[398163759,1765413033488,-500.0,0.00016999,2]
[398163760,1765413033502,-500.0,0.00016999,2]
[398163761,1765413033518,-500.0,0.00016999,2]
[398163762,1765413033531,-432.43535696,0.00016999,2]
[398163763,1765413033544,-203.44192257,0.00016999,2]
[398163764,1765413033559,-500.0,0.00016999,2]
[398163765,1765413033573,-500.0,0.00016999,2]
[398163766,1765413033588,-500.0,0.00016999,2]
[398163767,1765413033601,-500.0,0.00016999,2]
[398163768,1765413033614,-500.0,0.00016999,2]
[398163769,1765413033630,-500.0,0.00016999,2]
[398163770,1765413033644,-500.0,0.00016999,2]
[398163771,1765413033658,-500.0,0.00016999,2]
[398163772,1765413033670,-500.0,0.00016999,2]
[398163773,1765413033682,-500.0,0.00016999,2]
[398163774,1765413033695,-500.0,0.00016999,2]
[398163775,1765413033711,-500.0,0.00016999,2]
[398163776,1765413033722,-553.21348358,0.00016999,2]
[398163777,1765413033733,-500.0,0.00016999,2]
[398163778,1765413033745,-500.0,0.00016999,2]
[398163779,1765413033761,-229.25806731,0.00016999,2]
[398163780,1765413033773,-168.63392999,0.00016999,2]
[398163781,1765413033786,-500.0,0.00016999,2]
[398163782,1765413033798,-500.0,0.00016999,2]
[398163783,1765413033809,-500.0,0.00016999,2]
[398163784,1765413033821,-500.0,0.00016999,2]
[398163785,1765413033833,-500.0,0.00016999,2]
[398163786,1765413033845,-152.84798701,0.00016999,2]
[398163787,1765413033857,-298.83022132,0.00016999,2]
[398163788,1765413033870,-500.0,0.00016999,2]
[398163789,1765413033882,-288.7187326,0.00016999,2]
[398163790,1765413033894,-150.0,0.00016999,2]
[398163791,1765413033906,-2357.26867489,0.00016999,2]
[398163792,1765413033921,-2357.26867489,0.00016999,2]
[398163793,1765413033933,-2357.26867489,0.00016999,2]
[398163794,1765413033944,-2357.26867489,0.00016999,2]
[398163795,1765413033956,-2357.26867489,0.00016999,2]
[398163796,1765413033967,-2357.26867489,0.00016999,2]
[398163797,1765413033979,-2357.26867489,0.00016999,2]
[398163798,1765413033991,-2357.26867489,0.00016999,2]
[398163799,1765413034003,-2357.26867489,0.00016999,2]
[398163800,1765413034014,-2357.26867489,0.00016999,2]
[398163801,1765413034026,-2357.26867489,0.00016999,2]
[398163802,1765413034037,-2357.26867489,0.00016999,2]
[398163803,1765413034050,-2357.26867489,0.00016999,2]
[398163804,1765413034061,-956.2482666,0.00016999,2]
[398163805,1765413034076,-1020.54048194,0.00016999,2]
[398163806,1765413034089,-380.47992635,0.00016999,2]
[398163807,1765413034102,-541.65599789,0.00016999,2]
[398163808,1765413034126,-1815.612677,0.00016999,2]
[398163809,1765413034138,-2357.26867489,0.00016999,2]
[398163810,1765413034150,-1160.09732735,0.00016999,2]
[398163811,1765413034207,-211.92726403,0.00016999,2]
[398163813,1765413037844,-302.91205108,0.00016999,2]
[398163815,1765413037876,-682.33203243,0.00016999,2]
[398163816,1765413037885,-2357.26867489,0.00016999,2]
[398163817,1765413037895,-2357.26867489,0.00016999,2]
[398163818,1765413037905,-2013.54689063,0.00016999,2]
[398163819,1765413037917,-343.72178426,0.00016999,2]
[398163820,1765413037930,-2357.26867489,0.00016999,2]
[398163821,1765413037940,-2357.26867489,0.00016999,2]
[398163822,1765413037950,-327.04052878,0.00016999,2]
[398163823,1765413037960,-2495.71882311,0.00016999,2]
[398163824,1765413037971,-2495.71882311,0.00016999,2]
[398163825,1765413037980,-2495.71882311,0.00016999,2]
[398163826,1765413037990,-2495.71882311,0.00016999,2]
[398163827,1765413038001,-582.7727996,0.00016999,2]
[398163828,1765413038010,-179.41517951,0.00016999,2]
[398163829,1765413038019,-426.50883866,0.00016999,2]
[398163830,1765413038029,-178.64289358,0.00016999,2]
[398163831,1765413038038,-277.86576068,0.00016999,2]
[398163832,1765413038047,-18941.20451637,0.00017,2]
[398163833,1765413038059,-106553.35745216,0.00017,2]
[398163834,1765413038071,-3531.99658436,0.00017,2]
[398163835,1765413038082,-451.14186505,0.00017,2]
[398163836,1765413038092,-5232977.60602126,0.00017,2]
[398163837,1765413038103,-733.75800295,0.00017,2]
[398163838,1765413038122,-5388.23074535,0.00017,2]
[398163839,1765413038134,-2007.27662849,0.00017,2]
[398163840,1765413038148,-4312.66566898,0.00017,2]
[398163847,1765413038565,-230.84158597,0.00017,2]
[398163848,1765413039831,-271.37002482,0.00017,2]
[398163849,1765413040360,-13441.71464927,0.00017,2]
[398163850,1765413040371,-68486.24246981,0.00017,2]
[398163851,1765413040382,-515.48461027,0.00017,2]
[398163852,1765413040393,-1500.0,0.00017,2]
[398163853,1765413040404,-980.87251112,0.00017,2]
[398163854,1765413040416,-1455.83665154,0.00017,2]
[398163855,1765413040427,-2951.42473746,0.00017,2]
[398163856,1765413040452,-1865.2,0.00017,2]
[398163857,1765413040463,-6316.52133088,0.00017,2]
[398163858,1765413040478,-526700.163451,0.00017,2]
[398163859,1765413040488,-150.0,0.00017048,2]
[398163860,1765413040498,-403.99245964,0.00017073,2]
[398163861,1765413040507,-403.99245964,0.00017173,2]
[398163862,1765413040516,-5110.51913,0.00017273,2]
[398163863,1765413040525,-403.99245964,0.00017273,2]
[398163864,1765413040534,-75474.65992386,0.00017373,2]
[398163865,1765413040544,-403.99245964,0.00017373,2]
[398163866,1765413040553,-198.07429291,0.00017473,2]
[398163867,1765413040563,-828.59116838,0.00017473,2]
[398163868,1765413040573,-120919.30560056,0.00017573,2]
[398163869,1765413040583,-213.62199812,0.00017673,2]
[398163870,1765413040592,-625.59895157,0.00017772,2]
[398163871,1765413040601,-500.0,0.00017873,2]
[398163872,1765413040611,-500.0,0.00017873,2]
[398163873,1765413040620,-500.0,0.00017873,2]
[398163874,1765413040630,-500.0,0.00017873,2]
[398163875,1765413040639,-500.0,0.00017873,2]
[398163876,1765413040649,-500.0,0.00017873,2]
[398163877,1765413040658,-500.0,0.00017873,2]
[398163878,1765413040667,-500.0,0.00017873,2]
[398163879,1765413040676,-500.0,0.00017873,2]
[398163880,1765413040685,-265.55665398,0.00017969,2]
[398163881,1765413040694,-370.22231728,0.00017972,2]
[398163882,1765413040703,-330.12000027,0.00017973,2]
[398163883,1765413040712,-500.0,0.00017973,2]
[398163884,1765413040721,-500.0,0.00017973,2]
[398163885,1765413040730,-508.5772492,0.00017973,2]
[398163886,1765413040739,-500.53795247,0.00017973,2]
[398163887,1765413040748,-162.08491059,0.00017973,2]
[398163888,1765413040757,-500.0,0.00017973,2]
[398163889,1765413040767,-500.06751975,0.00017973,2]
[398163890,1765413040777,-200.31954159,0.00017973,2]
[398163891,1765413040786,-161.97487682,0.00017973,2]
[398163892,1765413040796,-500.0,0.00017973,2]
[398163893,1765413040805,-500.54863818,0.00017973,2]
[398163894,1765413040814,-502.55295506,0.00017973,2]
[398163895,1765413040824,-161.75947073,0.00017973,2]
[398163896,1765413040833,-500.0,0.00017973,2]
[398163897,1765413040843,-500.0,0.00017973,2]
[398163898,1765413040851,-500.0,0.00017973,2]
[398163899,1765413040861,-500.0,0.00017973,2]
[398163900,1765413040871,-500.0,0.00017973,2]
[398163901,1765413040880,-500.0,0.00017973,2]
[398163902,1765413040889,-500.0,0.00017973,2]
[398163903,1765413040899,-421.52116717,0.00017973,2]
[398163904,1765413040908,-500.0,0.00017973,2]
[398163905,1765413040918,-500.0,0.00017973,2]
[398163906,1765413040931,-500.0,0.00017973,2]
[398163907,1765413040940,-500.0,0.00017973,2]
[398163908,1765413040950,-500.0,0.00017973,2]
[398163909,1765413040959,-500.0,0.00017973,2]
[398163910,1765413040970,-500.0,0.00017973,2]
[398163911,1765413040979,-500.0,0.00017973,2]
[398163912,1765413040988,-500.0,0.00017973,2]
[398163913,1765413041000,-500.0,0.00017973,2]
[398163914,1765413041009,-500.0,0.00017973,2]
[398163915,1765413041018,-500.0,0.00017973,2]
[398163916,1765413041028,-500.0,0.00017973,2]
[398163917,1765413041038,-500.0,0.00017973,2]
[398163918,1765413041047,-400.0,0.00017973,2]
[398163919,1765413041057,-500.0,0.00017973,2]
[398163920,1765413041066,-206.25375445,0.00017973,2]
[398163921,1765413041075,-500.0,0.00017973,2]
[398163922,1765413041084,-500.0,0.00017973,2]
[398163923,1765413041094,-500.0,0.00017973,2]
[398163924,1765413041103,-500.0,0.00017973,2]
[398163925,1765413041112,-503.390514,0.00017973,2]
[398163926,1765413041124,-500.0,0.00017973,2]
[398163927,1765413041134,-500.0,0.00017973,2]
[398163928,1765413041145,-151.0,0.00017997,2]
[398163929,1765413041154,-1137704.27086631,0.00018,2]
[398163930,1765413041164,-200.0,0.0001805,2]
[398163931,1765413041173,-625.59895157,0.00018071,2]
[398163932,1765413041183,-828.59116837,0.00018221,2]
[398163933,1765413041192,-377.0,0.00018292,2]
[398163934,1765413041202,-1355.0,0.00018328,2]
[398163935,1765413041211,-625.59895157,0.0001837,2]
[398163936,1765413041221,-1000.0,0.00018421,2]
[398163937,1765413041230,-1000.0,0.00018421,2]
[398163938,1765413041239,-1000.0,0.00018421,2]
[398163939,1765413041249,-1000.0,0.00018421,2]
[398163940,1765413041258,-1000.0,0.00018421,2]
[398163941,1765413041268,-1000.0,0.00018421,2]
[398163942,1765413041276,-501.45891931,0.00018521,2]
[398163943,1765413041286,-1000.0,0.00018521,2]
[398163944,1765413041296,-500.0,0.00018521,2]
[398163945,1765413041306,-497.77699847,0.00018521,2]
[398163946,1765413041317,-1000.0,0.00018521,2]
[398163947,1765413041328,-1000.0,0.00018521,2]
[398163948,1765413041337,-1000.0,0.00018521,2]
[398163949,1765413041347,-697.71108373,0.00018521,2]
[398163950,1765413041356,-1000.0,0.00018521,2]
[398163951,1765413041365,-1000.0,0.00018521,2]
[398163952,1765413041375,-373.24493381,0.00018521,2]
[398163953,1765413041384,-1000.0,0.00018521,2]
[398163954,1765413041394,-1000.0,0.00018521,2]
[398163955,1765413041403,-1000.0,0.00018521,2]
[398163956,1765413041413,-500.70075855,0.00018521,2]
[398163957,1765413041422,-1000.0,0.00018521,2]
[398163958,1765413041431,-1000.0,0.00018521,2]
[398163959,1765413041441,-500.0,0.00018521,2]
[398163960,1765413041450,-1000.0,0.00018521,2]
[398163961,1765413041460,-1000.0,0.00018521,2]
[398163962,1765413041470,-1008.07982341,0.00018521,2]
[398163963,1765413041479,-1000.0,0.00018521,2]
[398163964,1765413041488,-1000.0,0.00018521,2]
[398163965,1765413041498,-1000.0,0.00018521,2]
[398163966,1765413041508,-1000.0,0.00018521,2]
[398163967,1765413041517,-1000.0,0.00018521,2]
[398163968,1765413041527,-1000.0,0.00018521,2]
[398163969,1765413041536,-420.0,0.00018538,2]
[398163970,1765413041545,-1680.0,0.0001863,2]
[398163971,1765413041555,-625.59895157,0.00018669,2]
[398163972,1765413041565,-150.84,0.000188,2]
[398163973,1765413041576,-150.84,0.000188,2]
[398163974,1765413041585,-150.84,0.000188,2]
[398163975,1765413041596,-150.84,0.000188,2]
[398163976,1765413041605,-150.84,0.000188,2]
[398163977,1765413041614,-150.84,0.000188,2]
[398163978,1765413041623,-150.84,0.000188,2]
[398163979,1765413041633,-150.84,0.000188,2]
[398163980,1765413041642,-150.84,0.000188,2]
[398163981,1765413041652,-150.84,0.000188,2]
[398163982,1765413041661,-150.84,0.000188,2]
[398163983,1765413041670,-150.84,0.000188,2]
[398163984,1765413041680,-150.84,0.000188,2]
[398163985,1765413041689,-150.84,0.000188,2]
[398163986,1765413041698,-150.84,0.000188,2]
[398163987,1765413041707,-150.84,0.000188,2]
[398163988,1765413041717,-150.84,0.000188,2]
[398163989,1765413041726,-150.84,0.000188,2]
[398163990,1765413041735,-150.84,0.000188,2]
[398163991,1765413041745,-150.84,0.000188,2]
[398163992,1765413041753,-150.84,0.000188,2]
[398163993,1765413041763,-150.84,0.000188,2]
[398163994,1765413041772,-150.84,0.000188,2]
[398163995,1765413041887,-150.84,0.000188,2]
[398163996,1765413041898,-150.84,0.000188,2]
[398163997,1765413041907,-150.84,0.000188,2]
[398163998,1765413041917,-150.84,0.000188,2]
[398163999,1765413041930,-150.84,0.000188,2]
[398164000,1765413041939,-150.84,0.000188,2]
[398164001,1765413041949,-150.84,0.000188,2]
[398164002,1765413041960,-150.84,0.000188,2]
[398164003,1765413041972,-150.84,0.000188,2]
[398164004,1765413041983,-150.84,0.000188,2]
[398164005,1765413041992,-150.84,0.000188,2]
[398164006,1765413042002,-150.84,0.000188,2]
[398164007,1765413042013,-150.84,0.000188,2]
[398164008,1765413042023,-150.84,0.000188,2]
[398164009,1765413042033,-150.84,0.000188,2]
[398164010,1765413042042,-150.84,0.000188,2]
[398164011,1765413042051,-150.84,0.000188,2]
[398164012,1765413042060,-150.84,0.000188,2]
[398164013,1765413042070,-150.84,0.000188,2]
[398164014,1765413042079,-150.84,0.000188,2]
[398164015,1765413042088,-150.84,0.000188,2]
[398164016,1765413042097,-150.84,0.000188,2]
[398164017,1765413042107,-150.84,0.000188,2]
[398164018,1765413042116,-150.84,0.000188,2]
[398164019,1765413042125,-150.84,0.000188,2]
[398164020,1765413042134,-150.84,0.000188,2]
[398164021,1765413042143,-150.84,0.000188,2]
[398164022,1765413042152,-150.84,0.000188,2]
[398164023,1765413042162,-150.84,0.000188,2]
[398164024,1765413042171,-150.84,0.000188,2]
[398164025,1765413042180,-150.84,0.000188,2]
[398164026,1765413042189,-625.59895157,0.00018968,2]
[398164027,1765413042198,-828.59116837,0.00018968,2]
[398164028,1765413042207,-1500.0,0.00018968,2]
[398164029,1765413042217,-1312.11603347,0.00018968,2]
[398164030,1765413042226,-1500.0,0.00018968,2]
[398164031,1765413042236,-1500.0,0.00018968,2]
[398164032,1765413042245,-1500.0,0.00018968,2]
[398164033,1765413042254,-1500.0,0.00018968,2]
[398164034,1765413042263,-163.02870493,0.00018973,2]
[398164035,1765413042272,-151.0,0.00018997,2]
[398164036,1765413042282,-5142.3292052,0.00019,2]
[398164037,1765413042291,-43743.61673972,0.00019,2]
[398164038,1765413042306,-8648092.49066729,0.00019,2]
[398164039,1765413042315,-151.0,0.00019,2]
[398164040,1765413042325,-151.0,0.00019,2]
[398164041,1765413042334,-151.0,0.00019,2]
[398164042,1765413042344,-197.343977,0.00019,2]
[398164043,1765413042353,-151.0,0.00019,2]
[398164044,1765413042364,-151.0,0.00019,2]
[398164045,1765413042373,-151.0,0.00019,2]
[398164046,1765413042383,-151.0,0.00019,2]
[398164047,1765413042392,-151.0,0.00019,2]
[398164048,1765413042403,-546.20947811,0.00019068,2]
[398164049,1765413042412,-1500.0,0.00019068,2]
[398164050,1765413042422,-1000.0,0.00019068,2]
[398164051,1765413042432,-1000.0,0.00019068,2]
[398164052,1765413042441,-1393.31684045,0.00019068,2]
[398164053,1765413042450,-1500.0,0.00019068,2]
[398164054,1765413042460,-1300.0,0.00019068,2]
[398164055,1765413042470,-1500.0,0.00019068,2]
[398164056,1765413042479,-1500.0,0.00019068,2]
[398164057,1765413042489,-1002.19667634,0.00019068,2]
[398164058,1765413042499,-1000.0,0.00019068,2]
[398164059,1765413042508,-501.37943031,0.00019068,2]
[398164060,1765413042518,-1500.0,0.00019068,2]
[398164061,1765413042528,-1500.0,0.00019068,2]
[398164062,1765413042538,-1000.0,0.00019068,2]
[398164063,1765413042549,-1501.88068151,0.00019068,2]
[398164064,1765413042559,-1500.0,0.00019068,2]
[398164065,1765413042569,-1500.0,0.00019068,2]
[398164066,1765413042579,-767.0,0.00019081,2]
[398164067,1765413042590,-1575.0,0.00019119,2]
[398164069,1765413042599,-230.0,0.00019157,2]
[398164070,1765413042608,-1730.0,0.00019195,2]
[398164071,1765413042618,-2000.0,0.00019516,2]
[398164072,1765413042627,-2000.0,0.00019516,2]
[398164073,1765413042636,-2000.0,0.00019516,2]
[398164074,1765413042646,-1497.29568765,0.00019516,2]
[398164075,1765413042655,-2000.0,0.00019516,2]
[398164076,1765413042664,-501.45514452,0.00019616,2]
[398164077,1765413042673,-500.0,0.00019616,2]
[398164078,1765413042682,-250.0,0.00019769,2]
[398164079,1765413042691,-2500.0,0.00020064,2]
[398164080,1765413042701,-1596.18562867,0.00020064,2]
[398164081,1765413042710,-1613.1175325,0.00020064,2]
[398164082,1765413042721,-601.59824678,0.00020064,2]
[398164083,1765413042731,-250.0,0.00020111,2]
[398164084,1765413042741,-587.0,0.00020248,2]
[398164085,1765413042751,-2351.0,0.0002045,2]
[398164086,1765413042760,-2522.228108,0.00020612,2]
[398164087,1765413042769,-823.0,0.00022116,2]
[398164088,1765413042779,-2594.91,0.000222,7]
[398164089,1765413042788,-186.0,0.00022245,2]
[398164090,1765413042798,-956.0,0.0002229,2]
[398164091,1765413042807,-1278.0,0.00022334,2]
[398164092,1765413042817,-883.0,0.00022379,2]
[398164094,1765413042826,-727.0,0.00022423,2]
[398164096,1765413042835,-3292.0,0.00022447,2]
[398164098,1765413042845,-151.0,0.00022997,7]
[398164100,1765413042855,-5002.38838639,0.00023,30]
[398164101,1765413042865,-250.0,0.00023351,2]
[398164103,1765413042874,-1152.0,0.00024156,2]
[398164104,1765413042884,-487.0,0.00024222,2]
[398164106,1765413042893,-500.0,0.00024378,2]
[398164107,1765413042903,-250.0,0.000245,2]
[398164108,1765413042912,-4609.0,0.0002464,2]
[398164109,1765413042924,-500.0,0.00024793,2]
[398164110,1765413042934,-902.6353374,0.000248,3]
[398164111,1765413042944,-91362.2447049,0.000249,3]
[398164112,1765413042953,-235.5628099,0.00024959,2]
[398164113,1765413042962,-523500.7078947,0.00025,2]
[398164114,1765413042972,-2594.91,0.00025,7]
[398164115,1765413042981,-200.0,0.00025,2]
[398164116,1765413042991,-200.0,0.0002525,2]
[398164117,1765413043003,-200.0,0.00025503,2]
[398164118,1765413043012,-538.0,0.00026385,2]
[398164119,1765413043021,-163.02771921,0.00027,2]
[398164120,1765413043030,-3788.0,0.00027047,2]
[398164121,1765413043040,-676.74515892,0.00028,60]
[398164122,1765413043049,-500.0,0.00028115,7]
[398164123,1765413043060,-500.0,0.00028269,2]
[398164124,1765413043069,-5110.51912999,0.00028823,2]
[398164125,1765413043080,-413.84,0.0002884,2]
[398164126,1765413043090,-243.97397214,0.00028865,2]
[398164127,1765413043099,-198.0742929,0.00029404,2]
[398164128,1765413043108,-1001.39307769,0.0003,2]
[398164129,1765413043118,-345.53,0.00030743,2]
[398164130,1765413043127,-1116.44,0.000308,30]
[398164131,1765413043136,-273.08,0.00031017,2]
[398164132,1765413043146,-151.03973758,0.00031269,2]
[398164133,1765413043155,-2594.91,0.000321,7]
[398164134,1765413043166,-500.0,0.00032877,7]
[398164135,1765413043176,-500.0,0.00032877,7]
[398164136,1765413043186,-500.0,0.00032877,7]
[398164137,1765413043195,-500.0,0.00032877,7]
[398164138,1765413043204,-500.0,0.00032877,7]
[398164139,1765413043214,-500.0,0.00032877,7]
[398164140,1765413043224,-500.0,0.00032877,7]
[398164141,1765413043233,-500.0,0.00032877,7]
[398164142,1765413043243,-500.0,0.00032877,7]
[398164143,1765413043252,-500.0,0.00032877,7]
[398164144,1765413043261,-500.0,0.00032877,7]
[398164145,1765413043272,-500.0,0.00032877,7]
[398164146,1765413043282,-500.0,0.00032877,7]
[398164147,1765413043292,-500.0,0.00032877,7]
[398164148,1765413043303,-500.0,0.00032877,7]
[398164149,1765413043313,-500.0,0.00032877,7]
[398164150,1765413043323,-500.0,0.00032877,7]
[398164151,1765413043333,-500.0,0.00032877,7]
[398164152,1765413043344,-500.0,0.00032877,7]
[398164153,1765413043355,-500.0,0.00032877,7]
[398164154,1765413043365,-500.0,0.00032877,7]
[398164155,1765413043375,-500.0,0.00032877,7]
[398164156,1765413043384,-500.0,0.00032877,7]
[398164157,1765413043394,-500.0,0.00032877,7]
[398164158,1765413043403,-500.0,0.00032877,7]
[398164159,1765413043412,-500.0,0.00032877,7]
[398164160,1765413043423,-500.0,0.00032877,7]
[398164161,1765413043433,-500.0,0.00032877,7]
[398164162,1765413043443,-500.0,0.00032877,7]
[398164163,1765413043454,-500.0,0.00032877,7]
[398164164,1765413043464,-500.0,0.00032877,7]
[398164165,1765413043473,-500.0,0.00032877,7]
[398164166,1765413043483,-500.0,0.00032877,7]
[398164167,1765413043492,-500.0,0.00032877,7]
[398164168,1765413043502,-500.0,0.00032877,7]
[398164169,1765413043512,-500.0,0.00032877,7]
[398164170,1765413043523,-500.0,0.00032877,7]
[398164171,1765413043532,-500.0,0.00032877,7]
[398164172,1765413043542,-500.0,0.00032877,7]
[398164173,1765413043552,-500.0,0.00032877,7]
[398164174,1765413043562,-500.0,0.00032877,7]
[398164175,1765413043572,-500.0,0.00032877,7]
[398164176,1765413043583,-500.0,0.00032877,7]
[398164177,1765413043593,-500.0,0.00032877,7]
[398164178,1765413043603,-500.0,0.00032877,7]
[398164179,1765413043612,-500.0,0.00032877,7]
[398164180,1765413043621,-500.0,0.00032877,7]
[398164181,1765413043631,-500.0,0.00032877,7]
[398164182,1765413043640,-500.0,0.00032877,7]
[398164183,1765413043650,-500.0,0.00032877,7]